bitfinex/quotes_SOLUSD_20251007
["timestamp","ask_amount","ask_price","bid_price","bid_amount"]
[1759812649954,1.66765721,234.99,234.96,29.96]
[1759812650154,2.37765721,234.99,234.96,29.96]
[1759812650773,4.25568133,234.98,234.96,29.96]
[1759812651155,0.71,235.02,234.96,29.96]
[1759812651480,2.37765721,235.02,234.96,30.65]
[1759812651851,14.88918194,235.07,234.99,20.8]
[1759812652170,1.66765721,235.06,235.0,30.65]
[1759812652759,15.59918194,235.07,235.0,30.65]
[1759812652972,6.63170919,235.07,235.03,20.8]
[1759812653183,4.96405198,235.07,235.04,29.98]
[1759812654858,6.63170919,235.07,235.04,29.98]
[1759812655175,4.96405198,235.07,235.04,29.98]
[1759812655370,6.63170919,235.07,235.04,29.98]
[1759812656368,4.96405198,235.07,235.04,29.98]
[1759812658676,1.66765721,235.05,234.96,0.69]
[1759812658883,1.66765721,235.02,234.97,29.94]
[1759812659180,0.71,235.04,234.98,0.69]
[1759812659181,1.66765721,235.03,234.98,0.69]
[1759812659357,1.66765721,235.03,235.0,20.8]
[1759812659559,2.37765721,235.03,235.01,29.94]
[1759812659759,2.37765721,235.02,235.01,29.94]
[1759812660286,10.87647521,235.1,235.01,29.94]
[1759812660287,4.25439669,235.06,235.01,29.94]
[1759812660472,1.66765721,235.04,235.01,29.94]
[1759812660664,2.37765721,235.04,235.01,29.94]
[1759812660864,0.71,235.04,235.01,29.94]
[1759812661066,2.37765721,235.04,235.01,29.94]
[1759812661478,6.63227213,235.04,235.01,29.94]
[1759812661780,1.66765721,235.03,235.01,29.94]
[1759812662283,6.63225478,235.04,235.01,29.94]
[1759812663082,0.71,235.03,235.01,29.94]
[1759812663272,5.92225478,235.04,235.01,29.94]
[1759812663273,4.25459757,235.04,235.01,29.94]
[1759812663478,6.63225478,235.04,235.01,29.94]
[1759812663685,0.71,235.03,235.01,29.94]
[1759812663982,0.71,235.02,234.98,20.8]
[1759812664197,1.66765721,234.99,234.95,33.18]
[1759812664490,2.37765721,234.98,234.96,29.92]
[1759812664666,0.71,234.97,234.96,29.92]
[1759812664983,1.66765721,234.98,234.96,29.92]
[1759812665181,2.37765721,234.98,234.96,29.92]
[1759812665381,4.25586245,234.97,234.96,29.92]
[1759812665581,5.92351966,234.97,234.96,29.92]
[1759812665784,6.63351966,234.97,234.96,29.92]
[1759812665972,5.92351966,234.97,234.96,29.92]
[1759812666366,6.63351966,234.97,234.96,29.92]
[1759812666572,1.66765721,234.98,234.96,29.92]
[1759812666787,6.6333572,234.98,234.96,29.92]
[1759812667687,2.37765721,234.97,234.95,33.18]
[1759812667888,0.71,234.96,234.95,33.18]
[1759812668185,1.66765721,234.96,234.95,63.14]
[1759812668391,1.66765721,234.97,234.95,63.14]
[1759812668588,0.71,234.97,234.95,63.14]
[1759812668783,4.25569999,234.98,234.95,63.14]
[1759812669174,6.6333572,234.98,234.95,63.14]
[1759812669387,4.25604358,234.96,234.95,63.14]
[1759812669579,6.63370079,234.96,234.95,63.14]
[1759812669773,1.66765721,234.96,234.95,63.14]
[1759812670185,0.71,234.98,234.95,63.14]
[1759812670398,47.03899381,235.05,234.95,63.14]
[1759812670399,0.71,234.97,234.95,63.14]
[1759812670699,2.37765721,234.97,234.95,63.14]
[1759812671085,0.71,234.97,234.95,63.14]
[1759812671396,5.92314105,235.0,234.96,0.69]
[1759812671592,5.92314105,235.0,234.97,29.96]
[1759812671896,0.71,235.03,234.98,0.69]
[1759812672077,21.51251009,235.05,234.99,29.94]
[1759812672078,5.92225217,235.04,234.99,29.94]
[1759812672279,6.63225217,235.04,234.99,29.94]
[1759812672478,1.66765721,235.03,234.99,29.94]
[1759812672880,4.96459496,235.04,234.99,30.63]
[1759812673084,4.25459496,235.04,235.0,0.69]
[1759812673295,1.66765721,235.04,235.01,29.98]
[1759812673507,4.25464713,235.04,235.01,29.98]
[1759812673681,4.96464713,235.04,235.01,29.98]
[1759812675098,4.25464713,235.04,235.01,29.98]
[1759812675800,4.25441395,235.05,235.01,29.98]
[1759812676005,6.63207116,235.05,235.01,29.98]
[1759812676792,0.71,235.05,235.01,29.98]
[1759812676989,1.66765721,235.03,234.95,33.87]
[1759812677198,1.66765721,235.02,234.99,20.8]
[1759812677500,0.71,235.03,235.0,29.96]
[1759812677684,2.37765721,235.02,235.0,29.96]
[1759812677878,5.92279528,235.01,234.98,20.8]
[1759812678086,5.92279528,235.01,234.99,29.96]
[1759812678406,4.93513807,235.01,234.99,29.96]
[1759812678591,1.66765721,235.02,234.99,29.96]
[1759812678902,2.34765721,235.02,234.99,29.96]
[1759812679082,6.60272599,235.02,234.99,29.96]
[1759812679805,4.93506878,235.02,234.99,29.96]
[1759812679987,6.60272599,235.02,234.99,29.96]
[1759812680811,6.60272599,235.02,234.98,20.8]
[1759812681006,6.60272599,235.02,235.0,29.94]
[1759812682010,4.93506878,235.02,235.0,29.94]
[1759812682214,6.60272599,235.02,235.0,29.94]
[1759812682909,4.25506878,235.02,235.0,29.94]
[1759812683089,4.93506878,235.02,235.0,29.94]
[1759812684598,14.89069816,235.05,235.0,29.94]
[1759812684911,1.66765721,235.04,235.0,29.94]
[1759812685107,2.34765721,235.04,235.0,29.94]
[1759812685416,0.68,235.04,235.0,29.94]
[1759812685619,4.25477598,235.03,235.0,30.66]
[1759812686011,4.25477598,235.03,235.0,29.94]
[1759812686200,4.93477598,235.03,235.0,29.94]
[1759812686407,0.68,235.02,235.0,29.94]
[1759812686799,14.89171594,235.03,235.0,29.94]
[1759812687517,15.57171594,235.03,235.0,29.94]
[1759812689211,0.68,235.02,235.0,29.94]
[1759812689615,0.68,235.01,235.0,29.94]
[1759812689795,0.68,235.01,235.0,29.92]
[1759812690797,14.89361701,235.0,234.92,0.72]
[1759812691099,14.89361701,235.0,234.93,29.92]
[1759812691100,1.66765721,234.97,234.93,29.92]
[1759812691314,0.68,234.96,234.94,29.92]
[1759812691626,14.89361701,235.0,234.95,0.72]
[1759812691806,14.89361701,235.0,234.96,0.72]
[1759812692010,14.89361701,235.0,234.97,29.92]
[1759812692207,4.25531914,235.0,234.97,30.64]
[1759812692638,4.25531914,235.0,234.97,29.92]
[1759812692825,4.93531914,235.0,234.97,29.92]
[1759812694338,4.93531914,235.0,234.85,14.11164461]
[1759812694339,1.66765721,234.98,234.87,4.25757353]
[1759812694547,1.66765721,234.96,234.91,20.8]
[1759812694845,2.34765721,234.96,234.92,29.92]
[1759812695224,4.25622472,234.95,234.79,7.20241243]
[1759812695430,1.66765721,234.91,234.86,33.88]
[1759812695635,1.66765721,234.91,234.87,29.92]
[1759812695636,0.68,234.9,234.87,29.92]
[1759812695822,2.34765721,234.9,234.87,29.92]
[1759812696418,1.66765721,234.9,234.87,29.92]
[1759812696821,2.33765721,234.9,234.87,29.92]
[1759812697040,25.77326175,234.95,234.87,29.92]
[1759812697041,1.66765721,234.89,234.87,29.92]
[1759812697249,4.25749318,234.88,234.87,29.92]
[1759812698155,4.92749318,234.88,234.87,29.92]
[1759812698648,4.25749318,234.88,234.87,29.92]
[1759812702247,17.23888336,234.88,234.87,29.94]
[1759812705524,28.11535857,234.88,234.87,29.94]
[1759812705732,10.87647521,234.87,234.8,0.7]
[1759812706032,1.66765721,234.82,234.81,29.94]
[1759812706236,2.33765721,234.82,234.81,29.94]
[1759812707058,0.67,234.84,234.81,29.94]
[1759812707344,5.92623825,234.82,234.81,29.94]
[1759812707549,6.59623825,234.82,234.81,29.94]
[1759812708336,28.11916606,234.82,234.74,0.7]
[1759812708543,1.66765721,234.79,234.75,29.94]
[1759812709247,2.33765721,234.78,234.75,29.94]
[1759812709460,4.259488,234.77,234.75,29.94]
[1759812709632,12.78309223,234.84,234.76,0.67]
[1759812709971,10.87647521,234.86,234.76,0.67]
[1759812710159,10.87647521,234.86,234.78,20.8]
[1759812710359,1.66765721,234.85,234.79,30.61]
[1759812710534,1.66765721,234.86,234.8,0.67]
[1759812711252,2.60984055,234.86,234.8,0.67]
[1759812711756,4.25803704,234.85,234.8,0.67]
[1759812712059,4.92803704,234.85,234.8,0.67]
[1759812713456,0.67,234.84,234.79,29.94]
[1759812713831,0.67,234.83,234.79,29.94]
[1759812714162,0.67,234.83,234.8,29.94]
[1759812714749,2.60984055,234.84,234.8,29.94]
[1759812714961,3.27984055,234.84,234.8,29.94]
[1759812715251,0.67,234.84,234.8,29.94]
[1759812715458,4.25839969,234.83,234.8,29.94]
[1759812716041,4.92839969,234.83,234.8,29.94]
[1759812716256,4.25839969,234.83,234.8,29.94]
[1759812717154,4.92839969,234.83,234.8,29.94]
[1759812717361,4.25839969,234.83,234.8,29.94]
[1759812717748,4.25839969,234.83,234.8,30.61]
[1759812718545,4.25839969,234.83,234.8,29.94]
[1759812719060,0.67,234.82,234.8,29.94]
[1759812719247,4.9287624,234.81,234.8,29.94]
[1759812720264,4.2587624,234.81,234.8,29.94]
[1759812720762,3.27984055,234.87,234.8,30.61]
[1759812721062,0.67,234.87,234.83,20.8]
[1759812721238,4.25749318,234.88,234.84,29.94]
[1759812721439,15.80396839,234.88,234.84,29.94]
[1759812722040,4.25749318,234.88,234.84,30.61]
[1759812722244,4.25749318,234.88,234.85,0.67]
[1759812722469,4.25713069,234.9,234.85,0.67]
[1759812722847,4.25713069,234.9,234.86,0.67]
[1759812723063,4.25689265,234.92,234.87,0.67]
[1759812723246,4.25689265,234.92,234.88,30.61]
[1759812724136,0.67,234.91,234.88,29.94]
[1759812724361,0.67,234.9,234.88,29.94]
[1759812724562,18.17865385,234.92,234.88,29.94]
[1759812724742,0.67,234.91,234.88,29.94]
[1759812725453,4.25713069,234.9,234.88,29.94]
[1759812728156,4.25694947,234.91,234.88,29.94]
[1759812728662,2.60984055,234.92,234.88,29.94]
[1759812728870,4.25653027,234.94,234.89,0.67]
[1759812729068,4.25653027,234.94,234.9,0.67]
[1759812729452,4.92653027,234.94,234.88,30.61]
[1759812729654,4.25653027,234.94,234.89,0.67]
[1759812730253,4.25622472,234.95,234.89,4.92729546]
[1759812730551,4.25622472,234.95,234.9,0.67]
[1759812730749,4.25622472,234.95,234.91,0.67]
[1759812730957,4.25622472,234.95,234.92,29.94]
[1759812732774,0.67,234.94,234.92,29.94]
[1759812732956,0.67,234.93,234.92,29.94]
[1759812733273,2.60984055,234.94,234.92,29.94]
[1759812733684,18.17662709,234.95,234.92,29.94]
[1759812734463,15.56678654,234.95,234.92,29.94]
[1759812734660,18.17662709,234.95,234.92,29.94]
[1759812735074,6.86606527,234.95,234.92,29.94]
[1759812735259,4.25622472,234.95,234.92,29.94]
[1759812735469,4.25622472,234.95,234.92,30.61]
[1759812736187,4.25586245,234.97,234.92,29.94]
[1759812736358,4.25586245,234.97,234.93,0.67]
[1759812737268,4.92550023,234.99,234.93,0.67]
[1759812737474,2.60984055,234.98,234.93,0.67]
[1759812737666,4.25550023,234.99,234.94,0.67]
[1759812737872,4.25550023,234.99,234.92,29.94]
[1759812737873,4.92550023,234.99,234.92,29.94]
[1759812738077,4.92550023,234.99,234.93,0.67]
[1759812738078,7.53534078,234.99,234.93,0.67]
[1759812739772,2.60984055,234.98,234.92,29.94]
[1759812739993,2.60984055,234.96,234.87,21.46]
[1759812740177,14.89425081,234.99,234.91,20.8]
[1759812740178,2.60984055,234.93,234.91,20.8]
[1759812740370,0.68,234.92,234.88,29.94]
[1759812740889,3.28984055,234.92,234.88,29.94]
[1759812741072,0.68,234.91,234.88,29.94]
[1759812741276,0.68,234.91,234.86,20.8]
[1759812741482,3.28984055,234.91,234.87,29.94]
[1759812741792,4.93713069,234.9,234.87,29.94]
[1759812742555,4.25713069,234.9,234.87,29.94]
[1759812743569,4.93713069,234.9,234.87,29.94]
[1759812743786,0.68,234.89,234.88,29.94]
[1759812743984,10.87647521,234.84,234.69,4.26078054]
[1759812744194,2.60984055,234.8,234.73,30.66]
[1759812744403,3.28984055,234.8,234.73,30.66]
[1759812745305,0.68,234.8,234.73,30.66]
[1759812746178,4.25912517,234.79,234.73,30.66]
[1759812746774,12.78309223,234.81,234.76,20.8]
[1759812746996,131.4,234.95,234.77,0.66]
[1759812746997,4.25801826,234.86,234.77,0.66]
[1759812747174,4.25801826,234.86,234.81,20.8]
[1759812747522,4.25801826,234.86,234.82,0.66]
[1759812747660,4.25801826,234.86,234.78,30.0]
[1759812747661,4.25801826,234.86,234.83,30.68]
[1759812748161,0.68,234.89,234.83,30.02]
[1759812748162,4.25749318,234.88,234.83,30.02]
[1759812748359,4.93749318,234.88,234.83,30.02]
[1759812748564,4.93749318,234.88,234.83,30.68]
[1759812748966,4.25727815,234.9,234.84,0.66]
[1759812751324,7.5471187,234.9,234.83,30.02]
[1759812751509,4.93727815,234.9,234.83,30.68]
[1759812752410,4.25727815,234.9,234.84,0.66]
[1759812752919,4.25693274,234.92,234.84,0.66]
[1759812753131,4.25693274,234.92,234.85,4.25803704]
[1759812753295,4.93693274,234.92,234.84,0.66]
[1759812753693,4.93693274,234.92,234.85,30.0]
[1759812753925,4.93693274,234.92,234.86,0.66]
[1759812754433,17.03256737,234.94,234.86,0.66]
[1759812754598,4.25612286,234.96,234.88,20.8]
[1759812754914,4.25612286,234.96,234.89,0.66]
[1759812755107,4.25612286,234.96,234.9,30.02]
[1759812755697,0.68,234.95,234.9,30.02]
[1759812756000,14.89623181,234.96,234.91,30.02]
[1759812756308,14.89623181,234.96,234.92,30.02]
[1759812756504,15.57623181,234.96,234.92,30.02]
[1759812758221,0.7,234.95,234.92,30.02]
[1759812758416,4.25640589,234.94,234.92,30.02]
[1759812758799,0.7,234.93,234.92,30.02]
[1759812759323,4.25640589,234.94,234.92,30.02]
[1759812759625,4.95640589,234.94,234.92,30.02]
[1759812760023,4.25640589,234.94,234.92,30.02]
[1759812761625,4.25622472,234.95,234.92,30.02]
[1759812761923,4.95622472,234.95,234.92,30.02]
[1759812762127,17.50662709,234.95,234.85,4.25801637]
[1759812762426,17.50662709,234.95,234.89,20.8]
[1759812762626,4.25622472,234.95,234.89,20.8]
[1759812763524,4.25595099,234.97,234.9,0.69]
[1759812763722,4.25595099,234.97,234.91,30.0]
[1759812763927,4.25595099,234.97,234.92,0.69]
[1759812764340,4.25595099,234.97,234.93,0.69]
[1759812764914,4.25595099,234.97,234.91,30.0]
[1759812765115,4.95595099,234.97,234.91,30.69]
[1759812767141,15.59560711,234.97,234.91,30.69]
[1759812767314,15.59560711,234.97,234.91,30.0]
[1759812767315,0.7,234.96,234.91,30.0]
[1759812767638,0.7,234.95,234.91,30.0]
[1759812767808,0.7,234.94,234.93,20.8]
[1759812768007,4.25622472,234.95,234.93,20.8]
[1759812769132,4.25604358,234.96,234.93,20.8]
[1759812769324,4.97604358,234.96,234.93,20.8]
[1759812769632,4.25604358,234.96,234.93,20.8]
[1759812770423,4.25586245,234.97,234.94,29.96]
[1759812770737,4.97586245,234.97,234.94,29.96]
[1759812771118,4.97586245,234.97,234.91,0.69]
[1759812771323,4.97586245,234.97,234.92,29.96]
[1759812771523,0.72,234.96,234.92,29.96]
[1759812772537,4.97622472,234.95,234.92,29.96]
[1759812772741,4.25622472,234.95,234.92,29.96]
[1759812772933,4.25622472,234.95,234.92,30.65]
[1759812773439,4.2560212,234.97,234.92,30.65]
[1759812773637,4.9760212,234.97,234.92,29.96]
[1759812774345,0.72,234.96,234.92,29.96]
[1759812774528,4.25622472,234.95,234.92,29.96]
[1759812774726,4.97622472,234.95,234.88,0.69]
[1759812775040,4.25622472,234.95,234.92,20.8]
[1759812775339,4.25622472,234.95,234.93,29.94]
[1759812775718,0.72,234.97,234.93,29.94]
[1759812775719,4.97603953,234.97,234.93,29.94]
[1759812780634,14.89458543,234.99,234.93,29.94]
[1759812780943,4.25550023,234.99,234.94,0.69]
[1759812781145,4.25550023,234.99,234.95,0.69]
[1759812781322,4.25550023,234.99,234.96,29.94]
[1759812782818,0.72,234.99,234.96,29.94]
[1759812783648,0.72,234.98,234.97,29.94]
[1759812785152,4.97568133,234.98,234.97,29.94]
[1759812785751,28.15997937,234.98,234.97,29.94]
[1759812786741,10.87647521,234.97,234.87,0.69]
[1759812786937,0.72,234.96,234.87,0.69]
[1759812787149,1.6686195,234.93,234.87,0.69]
[1759812787348,1.6686195,234.91,234.85,0.69]
[1759812787560,2.3886195,234.9,234.83,0.69]
[1759812787752,1.6686195,234.89,234.83,0.69]
[1759812787966,1.6686195,234.9,234.83,0.69]
[1759812788133,1.6686195,234.9,234.84,29.94]
[1759812788452,4.25731193,234.89,234.84,30.63]
[1759812788625,4.25731193,234.89,234.85,0.69]
[1759812791642,11.59647521,234.88,234.75,0.69]
[1759812791848,1.6686195,234.83,234.76,29.94]
[1759812792046,2.3886195,234.84,234.77,0.69]
[1759812792462,12.78145836,234.83,234.77,0.69]
[1759812793062,15.17007786,234.83,234.76,29.94]
[1759812793244,6.64720054,234.82,234.76,29.94]
[1759812793445,2.3886195,234.81,234.76,29.94]
[1759812793772,0.72,234.8,234.76,29.94]
[1759812793970,0.72,234.79,234.76,29.94]
[1759812794354,4.25833843,234.84,234.77,0.69]
[1759812794549,4.25833843,234.84,234.79,20.8]
[1759812794868,4.25833843,234.84,234.8,0.69]
[1759812795080,4.25801533,234.86,234.81,30.69]
[1759812795271,14.90073661,234.89,234.82,0.69]
[1759812795658,15.62073661,234.89,234.82,0.69]
[1759812796876,12.77819188,234.9,234.84,20.8]
[1759812797057,4.25674255,234.93,234.85,0.69]
[1759812797250,4.25674255,234.93,234.86,30.0]
[1759812797473,4.25674255,234.93,234.87,0.69]
[1759812799048,4.25674255,234.93,234.86,30.0]
[1759812799049,4.94674255,234.93,234.86,30.0]
[1759812800358,4.94674255,234.93,234.86,30.71]
[1759812800771,17.03231568,234.95,234.86,30.0]
[1759812800970,17.03231568,234.95,234.89,20.8]
[1759812800971,4.25630052,234.95,234.89,20.8]
[1759812801157,4.25630052,234.95,234.9,0.71]
[1759812801356,4.25630052,234.95,234.91,29.98]
[1759812802050,4.25604358,234.96,234.91,29.98]
[1759812802270,4.94604358,234.96,234.91,29.98]
[1759812802878,0.69,234.95,234.91,29.98]
[1759812803079,0.69,234.94,234.91,29.98]
[1759812804098,4.25676826,234.92,234.85,0.71]
[1759812804383,1.6686195,234.97,234.89,20.8]
[1759812804581,1.6686195,234.97,234.9,29.98]
[1759812804770,0.69,234.96,234.9,29.98]
[1759812804971,2.3586195,234.96,234.9,29.98]
[1759812805276,4.25622472,234.95,234.9,29.98]
[1759812805482,4.94622472,234.95,234.9,29.98]
[1759812806580,4.94622472,234.95,234.9,30.69]
[1759812808265,0.69,234.94,234.9,29.98]
[1759812809061,4.25622472,234.95,234.9,29.98]
[1759812809387,4.94622472,234.95,234.9,30.69]
[1759812809767,4.25622472,234.95,234.91,0.71]
[1759812809961,11.33000516,234.97,234.9,29.98]
[1759812809962,4.25604358,234.96,234.9,29.98]
[1759812810284,4.94604358,234.96,234.9,29.98]
[1759812811388,0.69,234.95,234.9,29.98]
[1759812811694,0.69,234.94,234.9,29.98]
[1759812811991,0.69,234.93,234.9,29.98]
[1759812812173,0.69,234.92,234.9,29.98]
[1759812812373,0.69,234.92,234.86,0.71]
[1759812812587,0.69,234.92,234.9,20.8]
[1759812812775,1.6686195,234.93,234.91,29.96]
[1759812813377,4.94676826,234.92,234.91,29.96]
[1759812813785,6.61538776,234.92,234.91,29.96]
[1759812814494,4.94676826,234.92,234.91,29.96]
[1759812814673,6.61538776,234.92,234.91,29.96]
[1759812815997,0.69,234.92,234.91,29.96]
[1759812816376,4.94676826,234.92,234.91,29.96]
[1759812822876,4.25622472,234.95,234.91,30.67]
[1759812823076,4.25622472,234.95,234.92,0.71]
[1759812823382,0.69,234.94,234.88,0.71]
[1759812823781,0.69,234.94,234.89,29.94]
[1759812823982,0.69,234.94,234.89,30.65]
[1759812824184,1.6686195,234.96,234.9,0.71]
[1759812824486,4.25574758,234.98,234.9,0.71]
[1759812825187,4.25574758,234.98,234.9,4.967129]
[1759812825388,4.25574758,234.98,234.91,0.71]
[1759812825694,15.58495091,234.98,234.91,0.71]
[1759812828396,17.25357041,234.98,234.89,29.94]
[1759812828584,2.3486195,234.97,234.89,29.94]
[1759812828785,0.68,234.96,234.89,29.94]
[1759812829093,0.68,234.96,234.89,30.61]
[1759812829499,0.68,234.96,234.9,0.67]
[1759812830298,4.25622472,234.95,234.9,0.67]
[1759812830497,4.25622472,234.95,234.89,29.94]
[1759812830498,0.68,234.94,234.89,29.94]
[1759812830679,4.25622472,234.95,234.9,0.67]
[1759812831002,4.25622472,234.95,234.91,0.67]
[1759812832097,4.25622472,234.95,234.89,29.94]
[1759812832401,4.93604358,234.96,234.89,29.94]
[1759812832619,4.93604358,234.96,234.89,30.61]
[1759812833018,4.93604358,234.96,234.89,29.94]
[1759812833183,4.93604358,234.96,234.9,0.67]
[1759812838383,20.8,234.99,234.9,0.67]
[1759812838384,4.25568133,234.98,234.9,4.92709903]
[1759812838688,4.25568133,234.98,234.91,0.67]
[1759812840412,4.25568133,234.98,234.92,25.05676826]
[1759812840586,4.25568133,234.98,234.93,0.67]
[1759812840780,4.93568133,234.98,234.94,29.94]
[1759812840993,4.25568133,234.98,234.94,29.94]
[1759812841190,0.68,234.97,234.94,29.94]
[1759812842319,0.68,234.96,234.94,29.94]
[1759812842814,0.68,234.98,234.94,29.94]
[1759812843017,0.68,234.97,234.94,29.94]
[1759812843205,4.93550023,234.99,234.94,29.94]
[1759812843404,0.68,234.98,234.94,29.94]
[1759812843607,0.68,235.03,234.95,0.67]
[1759812843796,10.63620545,235.05,234.95,0.67]
[1759812843996,0.68,235.04,234.95,0.67]
[1759812844211,3.28733933,235.04,234.95,0.67]
[1759812844511,0.68,235.04,234.95,0.67]
[1759812844717,3.28733933,235.04,234.95,0.67]
[1759812844919,4.25477598,235.03,234.95,0.67]
[1759812845140,0.68,235.02,234.95,0.67]
[1759812846119,4.25513807,235.01,234.95,0.67]
[1759812847212,0.68,235.01,234.95,0.67]
[1759812847914,4.25496466,235.02,234.95,0.67]
[1759812848121,4.25477598,235.03,234.95,4.92622407]
[1759812848306,4.93477598,235.03,234.96,0.67]
[1759812848619,4.93477598,235.03,234.97,29.92]
[1759812848810,0.68,235.02,234.97,29.92]
[1759812849015,0.68,235.01,234.97,29.92]
[1759812850422,4.25531914,235.0,234.97,29.92]
[1759812850716,0.68,235.01,234.97,29.92]
[1759812850922,4.93516364,235.01,234.97,29.92]
[1759812851817,4.93516364,235.01,234.97,30.59]
[1759812851818,4.25516364,235.01,234.97,30.59]
[1759812852200,4.93516364,235.01,234.97,29.92]
[1759812852609,4.25516364,235.01,234.97,29.92]
[1759812852807,4.93516364,235.01,234.97,29.92]
[1759812853010,0.68,235.0,234.97,29.92]
[1759812853622,4.25516364,235.01,234.97,29.92]
[1759812853812,4.93516364,235.01,234.97,29.92]
[1759812855316,0.68,235.0,234.97,29.92]
[1759812855498,0.68,234.99,234.98,29.92]
[1759812856219,3.28733933,234.99,234.98,29.92]
[1759812856395,0.68,234.99,234.98,29.92]
[1759812857696,4.93550023,234.99,234.98,29.92]
[1759812858822,4.93550023,234.99,234.89,4.25726905]
[1759812858823,15.57425081,234.99,234.89,4.25726905]
[1759812858999,0.72,234.98,234.9,51.41]
[1759812859207,3.32733933,234.97,234.91,29.92]
[1759812859505,0.72,234.96,234.91,29.92]
[1759812859709,0.72,234.96,234.91,30.61]
[1759812860723,4.25586245,234.97,234.91,29.92]
[1759812861024,0.72,234.95,234.91,29.92]
[1759812861514,6.86320178,234.97,234.93,20.8]
[1759812861824,4.25622472,234.95,234.91,50.72]
[1759812862327,4.25622472,234.95,234.91,51.41]
[1759812862710,4.25622472,234.95,234.91,50.72]
[1759812862929,2.60733933,234.93,234.91,20.8]
[1759812863104,0.72,234.92,234.86,0.69]
[1759812863306,0.72,234.92,234.87,29.92]
[1759812863522,0.72,234.92,234.88,0.69]
[1759812863698,0.72,234.92,234.87,50.72]
[1759812863699,4.25676826,234.92,234.87,50.72]
[1759812863901,0.72,234.91,234.87,50.72]
[1759812865350,0.72,234.9,234.89,20.8]
[1759812865626,0.72,234.9,234.87,29.92]
[1759812865802,4.97737069,234.89,234.87,29.92]
[1759812866004,0.72,234.88,234.87,29.92]
[1759812867918,4.97749318,234.88,234.87,29.92]
[1759812871931,0.72,234.88,234.87,29.92]
[1759812872122,4.97749318,234.88,234.87,29.92]
[1759812874922,0.72,234.88,234.87,29.92]
[1759812875122,4.97749318,234.88,234.87,29.92]
[1759812876937,4.25749318,234.88,234.87,29.92]
[1759812878027,0.71,234.88,234.87,29.92]
[1759812878234,4.25731193,234.89,234.87,29.92]
[1759812878431,4.96731193,234.89,234.87,29.92]
[1759812878639,4.25731193,234.89,234.87,29.92]
[1759812878839,0.71,234.88,234.87,29.92]
[1759812879316,2.60733933,234.88,234.79,33.18]
[1759812879639,2.60733933,234.83,234.8,29.92]
[1759812879838,0.71,234.82,234.81,29.92]
[1759812880024,4.96858104,234.82,234.81,29.92]
[1759812882032,10.64565388,234.85,234.81,29.92]
[1759812882238,11.35565388,234.85,234.81,29.92]
[1759812882690,10.64565388,234.85,234.81,29.92]
[1759812882950,0.71,234.84,234.81,29.92]
[1759812883131,4.96821836,234.84,234.81,29.92]
[1759812883448,4.25731193,234.89,234.82,0.66]
[1759812884137,4.96731193,234.89,234.82,0.66]
[1759812884444,15.61059176,234.89,234.82,0.66]
[1759812884629,18.21793109,234.89,234.82,0.66]
[1759812884826,2.60733933,234.87,234.81,29.92]
[1759812885030,0.71,234.86,234.81,29.92]